[Event "Serbian League 2024"]
[Site "Bajina Basta"]
[Date "2024.10.02"]
[Round "6.5"]
[White "Juhasz, Bence R"]
[Black "Radovanovic, Mihajlo"]
[Result "1/2-1/2"]
[ECO "B00"]
[WhiteElo "2266"]
[BlackElo "2426"]
[Annotator "TA"]
[PlyCount "111"]
[EventDate "2024.09.26"]
[EventType "team-tourn"]
[EventCountry "SRB"]
[SourceTitle "playchess.com"]
[Source "ChessBase"]
[SourceQuality "1"]
[TimeControl "40/5400+30:1800+30"]

{[%evp 20,111,67,33,41,49,84,77,69,71,87,37,27,41,44,0,0,11,75,0,0,-62,60,56,53,42,170,161,179,168,391,398,394,387,350,391,540,516,543,531,497,477,850,355,651,660,873,758,757,752,713,185,162,0,0,0,14,0,0,0,0,0,0,0,0,0,0,0,0,0,20,0,0,0,0,0,0,0,0,0,0,0,3,0,0,0,0,0,0,0,0,0,0,0]} 1. e4 {[%emt 0:02:16]} Nc6 {[%emt 0:00:16]} 2. d4 {[%emt 0:00:58]} d5 {[%emt 0:00:05]} 3. e5 {[%emt 0:00:12]} Bf5 {[%emt 0:00:06]} 4. c3 {[%emt 0:00:08]} e6 {[%emt 0:00:05]} 5. f4 {[%emt 1:29:26]} h5 {[%emt 0:04:42]} 6. Nf3 {[%emt 0:00:00] B00: Queen's Fianchetto Defence, Nimzowitsch Defence.} Nh6 {[%emt 0:00:38]} 7. Be3 {[%emt 0:00:00]} Qd7 {[%emt 0:09:36]} 8. Nbd2 {[%emt 0:00:00]} f6 $146 {[%emt 0:06:59]} ({Predecessor:} 8... Be7 9. h3 a6 10. Bf2 f6 11. exf6 gxf6 12. Nh4 O-O-O 13. Be2 Bd6 14. Nb3 Rdg8 {0-1 Malaniuk,V (2585)-Mohr,G (2495) Ubeda op 1st 1996}) 9. b4 {[%emt 0:00:00]} a5 {[%emt 0:07:29]} 10. a3 {[%emt 0:00:00]} Na7 {[%emt 0:10:11]} 11. Qc1 {[%emt 0:00:00]} Qa4 {[%emt 0:17:27]} 12. Be2 {[%emt 0:00:00]} Be7 {[%emt 0:04:47]} 13. h3 {[%emt 0:00:00]} Nc8 {[%emt 0:02:48]} 14. O-O {[%emt 0:00:00]} Nb6 {[%emt 0:00:56]} 15. exf6 {[%emt 0:00:00]} (15. Bf2 $16) 15... gxf6 $14 {[%emt 0:03:51]} 16. Nh4 {[%emt 0:00:00]} Kd7 {[%emt 0:04:09]} 17. Nxf5 {[%emt 0:00:00]} Nxf5 {[%emt 0:00:08]} 18. Bf2 {[%emt 0:00:00]} Rag8 {[%emt 0:07:24]} (18... axb4 $11 19. cxb4 (19. axb4 Qxa1 20. Qxa1 Rxa1 $11) 19... Qc6) 19. b5 {[%emt 0:00:00]} (19. Re1 $16) 19... Nd6 {[%emt 0:02:04]} 20. Qb1 {[%emt 0:00:00]} (20. Rb1 $11 Nf5 21. Nb3) 20... Nbc4 {[%emt 0:00:13]} ({Black should play} 20... Rg7 $15 21. g3 h4) 21. Nxc4 $14 {[%emt 0:00:00]} dxc4 {[%emt 0:00:13]} 22. f5 {[%emt 0:00:00]} Rg5 {[%emt 0:04:04]} (22... exf5 $14 23. Be1 Qb3 (23... Qxb5 24. Qxb5+ Nxb5 25. Bxc4 $14)) 23. fxe6+ $18 {[%emt 0:00:00]} Kc8 {[%emt 0:01:12]} 24. Bh4 {[%emt 0:00:00]} Rxb5 $2 {[%emt 0:00:31]} (24... Qxb5 25. Bxg5 Qxg5) 25. Qg6 $18 {[%emt 0:00:00]} Rb2 {[%emt 0:00:19]} 26. Bxf6 {[%emt 0:00:00]} (26. Bxh5 Qe8 27. Qxe8+ Nxe8 28. Bxe8 Rxh4 $16) 26... Bxf6 {[%emt 0:00:50]} 27. Qxf6 {[%emt 0:00:00]} Rg8 {[%emt 0:01:11]} 28. Rae1 {[%emt 0:00:00]} (28. Bxh5 $2 Rgxg2+ (28... Rbxg2+ 29. Kh1 $17) 29. Kh1 Rh2+ 30. Kg1 Rbg2#) 28... Kb8 {[%emt 0:01:57]} 29. e7 {[%emt 0:00:00]} (29. Bxh5 $2 Rgxg2+ (29... Qxa3 $2 30. Bg4 $18) 30. Kh1 Rh2+ 31. Kg1 Rbg2#) 29... Ka7 {[%emt 0:00:16]} 30. Qe6 {[%emt 0:00:00]} (30. Bxh5 $2 Rgxg2+ (30... Qxa3 $2 31. Bg4 $18) 31. Kh1 Rh2+ 32. Kg1 Rbg2#) 30... Rg3 {[%emt 0:02:06]} (30... Qe8 $142 31. h4 (31. Bxc4 $2 Rgxg2+ 32. Kh1 Rh2+ 33. Kg1 Rbg2#) 31... Qg6 32. Qxg6 (32. Bxc4 $2 Qxg2#) 32... Rxg6) 31. Rf3 {[%emt 0:00:00]} (31. Bxh5 $2 Rgxg2+ (31... Rxc3 $2 32. Qe5 $18) 32. Kh1 Rh2+ 33. Kg1 Rbg2#) (31. Qe5 $142) 31... h4 $2 {[%emt 0:00:04]} (31... Rxf3 32. Bxf3 Qxa3) 32. Qe5 $18 {[%emt 0:00:12]} Qxa3 {[%emt 0:01:59]} 33. Qc5+ {[%emt 0:02:57]} (33. e8=R Rxf3 34. Bxf3 Nxe8 35. Qxe8 Qxc3 $16) (33. e8=Q Nxe8 34. Qxe8 Rxf3 35. Bxf3 Qxc3 $18) 33... Qxc5 {[%emt 0:00:01]} 34. dxc5 {[%emt 0:00:02]} Ne8 {[%emt 0:00:13]} 35. Rf8 $2 {[%emt 0:00:30]} ({Less strong is} 35. Bxc4 Rbxg2+ 36. Kh1 Rg1+ 37. Rxg1 Rxf3 $14) (35. Rxg3 {White threatens Rg8 and mate.} hxg3 36. h4 (36. Bxc4 Nf6 $18)) 35... Re3 $18 {[%emt 0:00:05] [#]} 36. Kf1 $2 {[%emt 0:02:58]} ({Only move:} 36. Ra1 $1 $18 {[%cal Ra1a5]} Rb5 (36... Rxe7 $2 {perishes.} 37. Rxa5+ Kb8 38. Bh5 $18) 37. Bxc4 Rxc5 38. Bf7 (38. Rxe8 Rxc4 39. Rxa5+ Kb6 $14)) 36... Rxe7 $11 {[%emt 0:00:45]} 37. Bxc4 {[%emt 0:00:13]} Rxe1+ {[%emt 0:00:10]} 38. Kxe1 {[%emt 0:00:02]} Ng7 {[%emt 0:00:28]} 39. Rf2 {[%emt 0:01:49]} Rb1+ {[%emt 0:00:44]} 40. Kd2 {[%emt 0:00:12]} Nh5 {[%emt 0:04:59]} 41. Kc2 {[%emt 0:34:20]} Re1 {[%emt 0:32:18]} 42. c6 {[%emt 0:01:35]} Re5 {[%emt 0:01:49]} 43. cxb7 {[%emt 0:01:44]} Kxb7 {[%emt 0:00:24]} 44. Kd3 {[%emt 0:00:20]} Rg5 {[%emt 0:00:00]} 45. Kd4 {[%emt 0:00:00]} Kb6 {[%emt 0:00:00]} 46. Bd5 {[%emt 0:00:00]} c6 {[%emt 0:00:00]} 47. Be4 {[%emt 0:00:00]} Ng7 {[%emt 0:00:00]} 48. Rf6 {[%emt 0:00:00]} Rc5 {[%emt 0:00:00]} 49. Bc2 {[%emt 0:00:00]} Rd5+ {[%emt 0:00:00]} 50. Kc4 {[%emt 0:00:00]} Re5 {[%emt 0:00:00]} 51. Rh6 {[%emt 0:00:00]} Rh5 {[%emt 0:00:00]} 52. Rg6 {[%emt 0:00:00]} Nf5 {[%emt 0:01:17]} 53. Be4 {[%emt 0:00:00]} Ne7 {[%emt 0:00:38]} 54. Re6 {[%emt 0:00:00]} Rc5+ {[%emt 0:00:12]} 55. Kb3 {[%emt 0:00:56]} Nd5 {[%emt 0:01:16]} 56. Bxd5 {[%emt 0:01:39]} 1/2-1/2